bitfinex-derivatives/quotes_BTCF0:USTF0_20230901
["timestamp","ask_amount","ask_price","bid_price","bid_amount"]
[1693536246451,0.49406643,26087.0,26086.0,0.4234]
[1693536246652,0.49906643,26087.0,26086.0,0.4234]
[1693536247552,0.49906643,26087.0,26086.0,0.53786197]
[1693536247945,0.50206643,26087.0,26086.0,0.52986197]
[1693536248950,0.48206643,26087.0,26086.0,0.52986197]
[1693536249149,0.50206643,26087.0,26086.0,0.52986197]
[1693536250143,0.48206643,26087.0,26086.0,0.52986197]
[1693536251253,0.48206643,26087.0,26086.0,0.4154]
[1693536254459,0.48606643,26087.0,26086.0,0.4154]
[1693536254661,0.49706643,26087.0,26086.0,0.4164]
[1693536258160,0.49706643,26087.0,26086.0,0.53086197]
[1693536258558,0.42032338,26087.0,26086.0,0.53086197]
[1693536259355,0.3243945,26087.0,26086.0,0.53086197]
[1693536259658,0.3293945,26087.0,26086.0,0.53186197]
[1693536260364,0.38586982,26087.0,26086.0,0.53286197]
[1693536260757,0.38586982,26087.0,26086.0,0.53669197]
[1693536262166,0.38586982,26087.0,26086.0,0.59324035]
[1693536262551,0.38586982,26087.0,26086.0,0.53346745]
[1693536262961,0.38586982,26087.0,26086.0,0.47877838]
[1693536263352,0.38586982,26087.0,26086.0,0.53346745]
[1693536263565,0.38586982,26087.0,26086.0,0.68225341]
[1693536263962,0.38586982,26087.0,26086.0,0.68125341]
[1693536264161,0.38086982,26087.0,26086.0,0.67925341]
[1693536264463,0.38186982,26087.0,26086.0,0.93307577]
[1693536265564,0.38186982,26087.0,26086.0,0.93690577]
[1693536266263,0.38186982,26087.0,26086.0,0.64025718]
[1693536266570,0.38186982,26087.0,26086.0,0.58556811]
[1693536266757,0.38186982,26087.0,26086.0,0.64025718]
[1693536267059,0.05747532,26087.0,26086.0,0.58939811]
[1693536267268,0.05747532,26087.0,26086.0,0.95688799]
[1693536267460,0.00057502,26089.0,26088.0,0.00383]
[1693536267768,0.00057502,26089.0,26088.0,0.64726746]
[1693536267959,0.00057502,26089.0,26088.0,1.11986111]
[1693536268460,0.75,26103.0,26088.0,1.11986111]
[1693536268461,0.7907,26102.0,26090.0,1.66543]
[1693536268665,0.1642,26100.0,26099.0,0.00383]
[1693536268866,0.1642,26100.0,26099.0,0.41923]
[1693536269164,0.4154,26102.0,26099.0,0.3994293]
[1693536269366,0.4154,26102.0,26098.0,0.09589371]
[1693536269367,0.4354,26102.0,26101.0,0.4154]
[1693536269562,0.7154,26102.0,26101.0,0.4154]
[1693536270167,0.754,26104.0,26102.0,0.00383]
[1693536270168,0.6,26104.0,26102.0,0.00383]
[1693536270357,0.03140863,26105.0,26103.0,0.4154]
[1693536270557,0.4642,26108.0,26105.0,0.00383]
[1693536270763,0.8996,26108.0,26106.0,0.4154]
[1693536271167,0.82295535,26108.0,26106.0,0.4154]
[1693536271369,0.4154,26107.0,26103.0,0.38163001]
[1693536271564,0.4154,26104.0,26102.0,0.003]
[1693536271869,0.00382,26103.0,26100.0,0.13458104]
[1693536272069,0.00382,26103.0,26102.0,0.4154]
[1693536272664,0.41922,26104.0,26102.0,0.39465928]
[1693536272858,0.41922,26104.0,26103.0,0.4154]
[1693536273568,0.00382,26103.0,26100.0,0.4184]
[1693536273866,0.4154,26101.0,26100.0,0.4184]
[1693536274271,0.4154,26101.0,26100.0,0.35977695]
[1693536274469,0.00382,26099.0,26098.0,0.03495021]
[1693536274667,0.00382,26097.0,26095.0,0.15138402]
[1693536274867,0.4154,26099.0,26097.0,0.00763999]
[1693536275071,0.4154,26099.0,26097.0,0.42303999]
[1693536275578,0.4184,26099.0,26097.0,0.42303999]
[1693536275872,0.4214,26099.0,26097.0,0.42303999]
[1693536276060,0.4184,26099.0,26097.0,0.42303999]
[1693536276260,0.4194,26099.0,26097.0,0.42303999]
[1693536276872,0.4164,26099.0,26097.0,0.42303999]
[1693536277067,0.4154,26098.0,26097.0,0.00763999]
[1693536278377,0.4184,26098.0,26097.0,0.00763999]
[1693536278574,0.3416818,26098.0,26097.0,0.00763999]
[1693536280767,0.3616818,26098.0,26096.0,0.40303999]
[1693536280967,0.4154,26097.0,26096.0,0.40303999]
[1693536281765,0.4154,26097.0,26096.0,0.41403999]
[1693536281972,0.35786044,26097.0,26096.0,0.41403999]
[1693536282887,0.35786044,26097.0,26096.0,0.42403999]
[1693536284077,0.35986044,26097.0,26096.0,0.41403999]
[1693536284574,0.36086044,26097.0,26096.0,0.40303999]
[1693536284977,0.36086044,26097.0,26096.0,0.45772906]
[1693536285181,0.36086044,26097.0,26096.0,0.45958837]
[1693536285379,0.36086044,26097.0,26096.0,0.40303999]
[1693536287077,0.4184,26097.0,26095.0,0.41923]
[1693536288579,0.4184,26097.0,26096.0,0.05468907]
[1693536288580,0.4174,26097.0,26096.0,0.05468907]
[1693536288781,0.4174,26097.0,26095.0,0.41023]
[1693536288782,0.00383,26096.0,26095.0,0.41023]
[1693536289681,0.00383,26096.0,26095.0,0.46491907]
[1693536289881,0.00383,26096.0,26095.0,0.41023]
[1693536290082,0.00383,26096.0,26095.0,0.42023]
[1693536290475,0.00383,26096.0,26095.0,0.53146745]
[1693536290679,0.00383,26096.0,26095.0,0.52046745]
[1693536291275,0.00383,26096.0,26095.0,0.42023]
[1693536291883,0.00383,26096.0,26095.0,0.39923]
[1693536291884,0.00683,26096.0,26095.0,0.39923]
[1693536292079,0.003,26096.0,26095.0,0.39923]
[1693536292271,0.003,26096.0,26095.0,0.51046745]
[1693536293077,0.003,26096.0,26095.0,0.39923]
[1693536293786,0.003,26096.0,26095.0,0.40306]
[1693536294784,0.003,26096.0,26095.0,0.45774907]
[1693536295379,0.003,26096.0,26095.0,0.51429745]
[1693536295887,0.003,26096.0,26095.0,0.45960838]
[1693536296288,0.003,26096.0,26095.0,0.40306]
[1693536298092,0.003,26096.0,26095.0,0.51429745]
[1693536298483,0.4154,26097.0,26096.0,0.00254315]
[1693536298681,0.4154,26097.0,26096.0,0.5291806]
[1693536298989,0.4154,26097.0,26096.0,0.47449153]
[1693536299786,0.4184,26097.0,26096.0,0.47449153]
[1693536300481,0.4184,26097.0,26096.0,0.41794315]
[1693536300681,0.4184,26097.0,26096.0,0.47449153]
[1693536301194,0.4184,26097.0,26096.0,0.41794315]
[1693536302386,0.4184,26097.0,26096.0,0.41894315]
[1693536303294,0.4184,26097.0,26096.0,0.41994315]
[1693536304386,0.4184,26097.0,26096.0,0.40729361]
[1693536305092,0.42223,26097.0,26096.0,0.40729361]
[1693536305291,0.42223,26097.0,26095.0,0.00383]
[1693536305491,0.4154,26096.0,26093.0,0.4154]
[1693536305790,0.4154,26094.0,26093.0,0.4354]
[1693536305987,0.4154,26094.0,26093.0,1.54010939]
[1693536306187,0.4154,26094.0,26093.0,1.52010939]
[1693536306391,0.4154,26094.0,26093.0,1.54010939]
[1693536306583,0.4154,26094.0,26093.0,1.55010939]
[1693536306988,0.4154,26094.0,26093.0,1.56110939]
[1693536307192,0.4154,26094.0,26093.0,1.55110939]
[1693536307394,0.4154,26094.0,26093.0,1.56110939]
[1693536308091,0.4164,26094.0,26093.0,1.55010939]
[1693536308788,0.4164,26094.0,26093.0,1.66134684]
[1693536308995,0.4164,26094.0,26093.0,1.57665777]
[1693536309194,0.4184,26094.0,26093.0,1.54010939]
[1693536309393,0.4184,26094.0,26093.0,1.52010939]
[1693536310400,0.4184,26094.0,26093.0,1.89479386]
[1693536310602,0.4184,26094.0,26093.0,0.79008447]
[1693536310792,0.4184,26094.0,26093.0,0.53634102]
[1693536311496,0.4184,26094.0,26093.0,0.79009066]
[1693536311891,0.4184,26094.0,26093.0,0.75940052]
[1693536312695,0.4384,26094.0,26093.0,0.73939531]
[1693536312891,0.4184,26094.0,26093.0,0.73939531]
[1693536313695,0.42223,26094.0,26093.0,0.73939531]
[1693536313998,0.00683,26094.0,26093.0,0.34281166]
[1693536314191,0.00683,26094.0,26089.0,0.16214904]
[1693536314192,0.30383,26093.0,26089.0,0.16214904]
[1693536314403,0.30383,26093.0,26086.0,0.22892395]
[1693536314404,0.4154,26090.0,26086.0,0.4154]
[1693536314605,0.4154,26088.0,26087.0,1.10490101]
[1693536316507,0.4154,26088.0,26087.0,1.15190101]
[1693536317205,0.4154,26088.0,26087.0,1.11490101]
[1693536317408,0.4154,26088.0,26087.0,1.12590101]
[1693536318306,0.4174,26088.0,26087.0,1.11590101]
[1693536319117,0.4184,26088.0,26087.0,1.10490101]
[1693536320003,0.4184,26088.0,26086.0,1.15959008]
[1693536320210,0.003,26088.0,26087.0,1.10490101]
[1693536320408,0.4184,26088.0,26087.0,1.16144939]
[1693536321310,0.4164,26088.0,26087.0,1.10490101]
[1693536322111,0.4174,26088.0,26087.0,1.10490101]
[1693536322613,0.4184,26088.0,26087.0,1.10490101]
[1693536323706,0.4184,26088.0,26086.0,1.10490101]
[1693536323913,0.003,26088.0,26087.0,1.10490101]
[1693536324114,0.4184,26088.0,26086.0,1.10490101]
[1693536324316,0.4154,26087.0,26086.0,1.10490101]
[1693536324915,0.4154,26087.0,26086.0,1.11490101]
[1693536325306,0.4154,26087.0,26086.0,1.12590101]
[1693536325715,0.4184,26087.0,26086.0,1.10490101]
[1693536327819,0.5782,26087.0,26086.0,1.10490101]
[1693536328819,0.5982,26087.0,26086.0,1.10490101]
[1693536329013,0.60203,26087.0,26086.0,1.08630101]
[1693536329218,0.00383,26086.0,26085.0,0.00057499]
[1693536329519,0.41923,26086.0,26085.0,0.00057499]
[1693536330405,0.41923,26086.0,26085.0,0.01057499]
[1693536331819,0.41923,26086.0,26085.0,0.02157499]
[1693536333120,0.42023,26086.0,26085.0,0.01057499]
[1693536334008,0.42023,26086.0,26085.0,0.00057499]
[1693536334212,0.42223,26086.0,26085.0,0.00057499]
[1693536334623,0.42423,26086.0,26085.0,0.00057499]
[1693536334821,0.42423,26086.0,26084.0,0.13427158]
[1693536335118,0.4154,26085.0,26084.0,0.13427158]
[1693536335711,0.4154,26085.0,26084.0,1.23926438]
[1693536336116,0.4164,26085.0,26084.0,1.23926438]
[1693536337014,0.4164,26085.0,26084.0,1.20926438]
[1693536337521,0.4184,26085.0,26084.0,1.20926438]
[1693536337823,0.4184,26085.0,26084.0,1.20476914]
[1693536339825,0.4184,26085.0,26084.0,1.20478103]
[1693536342923,0.4184,26085.0,26084.0,1.20478132]
[1693536346326,0.4164,26085.0,26084.0,1.20478132]
[1693536346526,0.4184,26085.0,26084.0,1.20478132]
[1693536347224,0.4204,26085.0,26084.0,1.20478132]
[1693536348427,0.45144605,26085.0,26084.0,1.20478132]
[1693536348622,0.39389346,26085.0,26084.0,1.25947039]
[1693536348926,0.39389346,26085.0,26084.0,1.20478132]
[1693536351625,0.39210346,26085.0,26084.0,1.2613297]
[1693536351832,0.03604605,26085.0,26084.0,1.39528834]
[1693536352021,0.03604605,26085.0,26084.0,1.2813297]
[1693536352222,0.03604605,26085.0,26084.0,1.33601877]
[1693536352721,0.03404605,26085.0,26084.0,1.35901877]
[1693536353432,0.03404605,26085.0,26084.0,1.33601877]
[1693536353623,0.03404605,26085.0,26084.0,1.35901877]
[1693536354130,0.03104605,26085.0,26084.0,1.53499767]
[1693536354431,0.4154,26085.0,26084.0,1.38301877]
[1693536354634,0.4154,26085.0,26084.0,1.35901877]
[1693536354930,0.4154,26085.0,26084.0,1.38301877]
[1693536355130,0.4154,26085.0,26084.0,1.78878095]
[1693536355530,0.4154,26085.0,26084.0,1.53499767]
[1693536355831,0.4154,26085.0,26084.0,1.38301877]
[1693536357031,0.4154,26085.0,26084.0,1.49713877]
[1693536359532,0.4154,26085.0,26084.0,1.38301877]
[1693536360237,0.4154,26085.0,26084.0,1.3283297]
[1693536360734,0.4154,26085.0,26084.0,1.38301877]
[1693536362036,0.4154,26085.0,26084.0,1.36301877]
[1693536362438,0.4154,26085.0,26084.0,1.38301877]
[1693536362640,0.4154,26085.0,26084.0,1.45916795]
[1693536363641,0.4154,26085.0,26084.0,1.78878045]
[1693536363831,0.44648198,26085.0,26084.0,1.76878045]
[1693536364139,0.44648198,26085.0,26084.0,1.36301877]
[1693536365341,0.44648198,26085.0,26084.0,1.47724665]
[1693536370740,0.44648198,26085.0,26084.0,1.36301877]
[1693536375843,0.08819587,26089.0,26084.0,2.37976906]
[1693536376042,0.4154,26088.0,26087.0,0.4154]
[1693536376445,0.4154,26088.0,26087.0,1.63164243]
[1693536377439,0.4154,26088.0,26087.0,1.66764243]
[1693536378547,0.4154,26088.0,26087.0,1.70364243]
[1693536378851,0.4154,26088.0,26087.0,1.81787031]
[1693536379645,0.44601548,26089.0,26087.0,1.81787031]
[1693536379949,0.44601548,26089.0,26088.0,1.70775043]
[1693536380353,0.44601548,26089.0,26088.0,1.63164243]
[1693536380949,0.44601548,26089.0,26088.0,1.70775043]
[1693536381142,0.44601548,26089.0,26088.0,1.65464243]
[1693536381952,0.44601548,26089.0,26088.0,1.67764243]
[1693536385745,0.05742693,26092.0,26089.0,0.3]
[1693536385953,0.4154,26092.0,26091.0,0.4154]
[1693536386252,0.4154,26092.0,26091.0,1.52040498]
[1693536386445,0.4154,26092.0,26091.0,1.63164243]
[1693536387153,0.4154,26092.0,26091.0,1.66864243]
[1693536388848,0.41923,26093.0,26091.0,1.66864243]
[1693536389054,0.43923,26093.0,26092.0,1.16155336]
[1693536390361,0.43923,26093.0,26092.0,1.19755336]
[1693536390558,0.43923,26093.0,26092.0,1.25224243]
[1693536390950,0.43923,26093.0,26092.0,1.19755336]
[1693536391554,0.43923,26093.0,26092.0,1.23355336]
[1693536393059,0.43923,26093.0,26092.0,1.28824243]
[1693536393261,0.43923,26093.0,26092.0,1.23355336]
[1693536395669,0.43923,26093.0,26092.0,1.28824243]
[1693536396560,0.43923,26093.0,26092.0,1.17700498]
[1693536398163,0.49815038,26093.0,26092.0,1.17700498]
[1693536401466,0.49815038,26093.0,26092.0,1.23169405]
[1693536401655,0.49815038,26093.0,26092.0,1.17700498]
[1693536403865,0.49815038,26093.0,26092.0,0.072]
[1693536406167,0.49815038,26093.0,26092.0,0.04235954]
[1693536409873,0.4154,26091.0,26086.0,0.37598595]
[1693536410073,0.4154,26091.0,26087.0,1.10480747]
[1693536410278,0.4154,26091.0,26085.0,0.07598595]
[1693536410279,0.3203,26090.0,26088.0,1.10486575]
[1693536410479,0.4154,26089.0,26084.0,0.07598595]
[1693536410683,0.02,26089.0,26085.0,1.10489355]
[1693536410876,0.4154,26086.0,26085.0,1.10489355]
[1693536412278,0.4184,26086.0,26085.0,1.14189355]
[1693536412671,0.4184,26086.0,26085.0,1.17889355]
[1693536413374,0.4184,26086.0,26085.0,1.14189355]
[1693536413579,0.4214,26086.0,26085.0,1.17889355]
[1693536415874,0.3638542,26086.0,26085.0,1.40410992]
[1693536416377,0.3638542,26086.0,26085.0,1.34942085]
[1693536416681,0.3638542,26086.0,26085.0,1.40410992]
[1693536416880,0.3638542,26086.0,26085.0,1.34942085]
[1693536417189,0.3638542,26086.0,26085.0,1.40410992]
[1693536417481,0.3638542,26086.0,26085.0,1.34942085]
[1693536417785,0.3638542,26086.0,26085.0,1.29287247]
[1693536418678,0.3638542,26086.0,26085.0,1.17889355]
[1693536419074,0.3638542,26086.0,26085.0,1.29301558]
[1693536420483,0.42006356,26086.0,26085.0,1.29301558]
[1693536421678,0.45152385,26086.0,26085.0,1.29301558]
[1693536424383,0.45152385,26086.0,26085.0,1.17889355]
[1693536425084,0.45152385,26086.0,26085.0,1.29301558]
[1693536425291,0.45152385,26086.0,26085.0,1.17889355]
[1693536425471,0.45152385,26086.0,26085.0,1.254975]
[1693536426280,0.45152385,26086.0,26085.0,0.15008145]
[1693536426481,0.45152385,26086.0,26085.0,1.25495961]
[1693536430182,0.45152385,26086.0,26085.0,1.30964868]
[1693536430586,0.45152385,26086.0,26085.0,1.25495961]
[1693536430891,0.45152385,26086.0,26085.0,1.17887816]
[1693536433882,0.45535385,26086.0,26085.0,1.17887816]
[1693536437592,0.45535385,26086.0,26085.0,1.0684667]
[1693536437797,0.4154,26083.0,26082.0,0.1545]
[1693536437991,0.8308,26083.0,26082.0,0.28859642]
[1693536438888,0.8338,26083.0,26082.0,0.32559642]
[1693536439593,0.8338,26083.0,26082.0,0.30559642]
[1693536439793,0.4184,26083.0,26082.0,0.30559642]
[1693536440195,0.4214,26083.0,26082.0,0.34259642]
[1693536440395,0.4214,26083.0,26082.0,0.2285]
[1693536441203,0.4214,26083.0,26082.0,0.2265]
[1693536442199,0.4214,26083.0,26082.0,0.2235]
[1693536442397,0.4214,26083.0,26082.0,0.37562857]
[1693536442694,0.4214,26083.0,26082.0,1.4805589]
[1693536443304,0.4214,26083.0,26082.0,1.73434782]
[1693536443699,0.4214,26083.0,26082.0,1.78903689]
[1693536444395,0.4214,26083.0,26082.0,1.73434782]
[1693536444888,0.4214,26083.0,26082.0,1.73435115]
[1693536445195,0.4214,26083.0,26082.0,1.75404022]
[1693536445196,0.4184,26083.0,26082.0,1.75404022]
[1693536445398,0.4204,26083.0,26082.0,1.77604022]
[1693536445599,0.4508344,26083.0,26082.0,1.76304022]
[1693536445897,0.4508344,26083.0,26082.0,1.63234927]
[1693536446102,0.4508344,26083.0,26082.0,1.43324942]
[1693536446405,0.4508344,26083.0,26082.0,1.43326096]
[1693536446797,0.509607,26083.0,26082.0,1.43326096]
[1693536446999,0.509607,26083.0,26082.0,1.37857189]
[1693536447304,0.507607,26083.0,26082.0,1.35658172]
[1693536447505,0.508607,26083.0,26082.0,1.41927079]
[1693536447705,0.508607,26083.0,26082.0,1.36458172]
[1693536448297,0.508607,26083.0,26082.0,1.28843366]
[1693536448603,0.507607,26083.0,26082.0,1.27543366]
[1693536449707,0.507607,26083.0,26082.0,1.38962369]
[1693536449904,0.507607,26083.0,26082.0,1.44431276]
[1693536450404,0.507607,26083.0,26082.0,1.38962369]
[1693536451002,0.507607,26083.0,26082.0,1.44431276]
[1693536451503,0.507607,26083.0,26082.0,1.27543366]
[1693536453109,0.507607,26083.0,26082.0,1.68135193]
[1693536453309,0.507607,26083.0,26082.0,1.736041]
[1693536455397,0.507607,26083.0,26082.0,1.79258938]
[1693536457211,0.507607,26083.0,26082.0,0.68765572]
[1693536457507,0.507607,26083.0,26082.0,1.73603319]
[1693536460411,0.507607,26083.0,26082.0,1.79258157]
[1693536461103,0.507607,26083.0,26082.0,1.50100343]
[1693536461704,0.507607,26083.0,26082.0,1.8020633]
[1693536461909,0.4488344,26083.0,26082.0,1.93640343]
[1693536462514,0.00057503,26088.0,26085.0,0.3]
[1693536462719,0.7907,26093.0,26088.0,0.3]
[1693536463012,0.4154,26092.0,26091.0,0.4154]
[1693536463214,0.4154,26092.0,26091.0,0.54663745]
[1693536463409,0.4154,26092.0,26091.0,1.6515633]
[1693536464112,0.4164,26092.0,26091.0,1.6585633]
[1693536465216,0.4174,26092.0,26091.0,1.6645633]
[1693536465520,0.4174,26092.0,26091.0,1.6445633]
[1693536466908,0.4174,26092.0,26091.0,1.2291633]
[1693536467412,0.4174,26092.0,26091.0,1.11792585]
[1693536468014,0.4174,26092.0,26091.0,1.17261492]
[1693536468718,0.4174,26092.0,26091.0,1.2291633]
[1693536469715,0.596,26092.0,26091.0,1.11792585]
[1693536470114,0.596,26092.0,26091.0,1.17447423]
[1693536470315,0.596,26092.0,26091.0,1.2291633]
[1693536470718,0.596,26092.0,26091.0,1.17447423]
[1693536470917,0.576,26092.0,26091.0,1.11792585]
[1693536471116,0.596,26092.0,26091.0,1.11792585]
[1693536471314,0.576,26092.0,26091.0,1.11792585]
[1693536471516,0.576,26092.0,26091.0,1.17261492]
[1693536471926,0.57983,26092.0,26091.0,1.11792585]
[1693536472610,0.57983,26092.0,26091.0,0.013]
[1693536472611,0.59983,26092.0,26091.0,0.013]
[1693536473016,0.63031074,26092.0,26091.0,0.013]
[1693536488536,0.79611074,26092.0,26091.0,0.013]
[1693536490031,0.77611074,26092.0,26091.0,0.013]
[1693536490230,0.79611074,26092.0,26091.0,0.013]
[1693536492528,0.77611074,26092.0,26091.0,0.013]
[1693536494437,0.44788074,26092.0,26091.0,0.013]
[1693536494738,0.44788074,26092.0,26091.0,1.83914356]
[1693536494739,0.02215652,26092.0,26091.0,1.83914356]
[1693536494931,0.0005749,26094.0,26092.0,0.0409328]
[1693536495131,0.0005749,26094.0,26093.0,1.63134599]
[1693536495534,0.0005749,26094.0,26093.0,1.65134599]
[1693536496136,0.0005749,26094.0,26093.0,1.80336638]
[1693536496334,0.0005749,26094.0,26093.0,2.05705108]
[1693536496527,0.0075749,26094.0,26093.0,2.05705108]
[1693536496740,0.0135749,26094.0,26093.0,2.05705108]
[1693536496933,0.0095749,26094.0,26093.0,2.09405108]
[1693536497738,0.03968395,26094.0,26093.0,2.09405108]
[1693536498138,0.03368395,26094.0,26093.0,1.80231362]
[1693536498346,0.03368395,26094.0,26093.0,1.72534599]
[1693536498347,0.03668395,26094.0,26093.0,1.72534599]
[1693536499137,0.03368395,26094.0,26093.0,1.68834599]
[1693536499344,0.03668395,26094.0,26093.0,1.87736638]
[1693536500336,0.03668395,26094.0,26093.0,2.13104995]
[1693536500842,0.03368395,26094.0,26093.0,2.09404995]
[1693536501045,0.03368395,26094.0,26093.0,2.13104995]
[1693536501046,0.03668395,26094.0,26093.0,2.13104995]
[1693536501339,0.4154,26097.0,26093.0,2.13104995]
[1693536501642,0.08848086,26098.0,26097.0,0.37668906]
[1693536501643,0.03101011,26098.0,26097.0,0.37668906]
[1693536501830,0.4154,26104.0,26097.0,0.37668906]
[1693536501831,0.1511,26103.0,26098.0,0.8308]
[1693536502141,0.1511,26103.0,26102.0,0.4154]
[1693536502444,0.4154,26104.0,26102.0,0.47008907]
[1693536502631,0.1511,26103.0,26102.0,0.4154]
[1693536502943,0.1511,26103.0,26102.0,0.52663745]
[1693536503139,0.1571,26103.0,26102.0,0.52663745]
[1693536503845,0.1941,26103.0,26102.0,0.52963745]
[1693536504544,0.1881,26103.0,26102.0,0.52963745]
[1693536504743,0.19730027,26103.0,26102.0,0.53263745]
[1693536505142,0.037,26103.0,26102.0,0.60556948]
[1693536505335,0.032,26103.0,26102.0,0.60556948]
[1693536505538,0.064,26103.0,26102.0,0.60856948]
[1693536506339,0.064,26103.0,26102.0,0.62856948]
[1693536506740,0.064,26103.0,26102.0,0.60856948]
[1693536506941,0.03140113,26104.0,26103.0,0.3]
[1693536507152,0.16043,26112.0,26103.0,2.10264848]
[1693536507343,0.4154,26108.0,26107.0,0.4154]
[1693536507544,0.35592029,26108.0,26107.0,0.52663745]
[1693536508359,0.35792029,26108.0,26107.0,0.55263745]
[1693536508955,0.35792029,26108.0,26107.0,0.49608907]
[1693536509363,0.002,26108.0,26107.0,0.49608907]
[1693536509655,0.004,26108.0,26107.0,0.57863745]
[1693536510368,0.4394,26108.0,26107.0,0.052]
[1693536511274,0.44323,26108.0,26107.0,0.052]
[1693536511462,0.44323,26108.0,26107.0,0.12783963]
[1693536512564,0.42323,26108.0,26107.0,0.12783963]
[1693536512771,0.44323,26108.0,26107.0,0.12783963]
[1693536513957,0.42323,26108.0,26107.0,0.10783964]
[1693536514162,0.44323,26108.0,26107.0,0.03200001]
[1693536518171,0.44323,26108.0,26107.0,0.00110001]
[1693536519577,0.41923,26107.0,26105.0,0.07583963]
[1693536519872,0.4154,26106.0,26105.0,0.05583963]
[1693536520072,0.4354,26106.0,26105.0,0.05583963]
[1693536520975,0.4354,26106.0,26105.0,0.09283963]
[1693536521574,0.36471683,26106.0,26105.0,0.12983963]
[1693536522268,0.36171683,26106.0,26105.0,0.037]
[1693536522463,0.36071683,26106.0,26105.0,0.015]
[1693536523064,0.36471683,26106.0,26103.0,0.11375945]
[1693536523262,0.4154,26104.0,26102.0,0.15186613]
[1693536523470,0.4154,26103.0,26102.0,0.26310358]
[1693536523669,0.1502,26103.0,26102.0,0.87744399]
[1693536523968,0.1502,26103.0,26102.0,0.72371855]
[1693536524169,0.1502,26103.0,26102.0,0.72557786]
[1693536524472,0.1502,26103.0,26102.0,0.93166817]
[1693536524675,0.1522,26103.0,26102.0,0.95066817]
[1693536524874,0.05634604,26103.0,26102.0,0.95066817]
[1693536525270,0.05834604,26103.0,26102.0,0.96966817]
[1693536525466,0.05634604,26103.0,26102.0,0.95066817]
[1693536525670,0.05834604,26103.0,26102.0,0.96966817]
[1693536526078,0.05834604,26103.0,26102.0,0.85843072]
[1693536526278,0.05834604,26103.0,26102.0,0.91311979]
[1693536526973,0.05634604,26103.0,26102.0,0.89411979]
[1693536527174,0.05834604,26103.0,26102.0,0.91311979]
[1693536527781,0.05834604,26103.0,26102.0,0.96966817]
[1693536530183,0.05834604,26103.0,26102.0,0.91311979]
[1693536530385,0.05834604,26103.0,26102.0,0.85843072]
[1693536530884,0.05834604,26103.0,26102.0,0.91311979]
[1693536531388,0.05834604,26103.0,26102.0,0.76171855]
[1693536531987,0.05834604,26103.0,26102.0,0.70702948]
[1693536533982,0.05834604,26103.0,26102.0,0.81826693]
[1693536535288,0.05834604,26103.0,26102.0,1.00842764]
[1693536535591,0.114515,26103.0,26102.0,1.00842764]
[1693536535887,0.114515,26103.0,26102.0,0.89719019]
[1693536536286,0.14509747,26103.0,26102.0,0.89719019]
[1693536538193,0.14509747,26103.0,26102.0,2.00143634]
[1693536538488,0.50463536,26106.0,26102.0,2.05798472]
[1693536538791,0.52463536,26106.0,26105.0,0.52926271]
[1693536539184,0.52463536,26106.0,26105.0,0.08386272]
[1693536539386,0.52463536,26106.0,26104.0,0.15181695]
[1693536539591,0.00383,26104.0,26103.0,0.15181695]
[1693536539886,0.4154,26104.0,26103.0,0.15181695]
[1693536540091,0.4354,26104.0,26103.0,0.40545527]
[1693536540291,0.4354,26104.0,26103.0,1.54808574]
[1693536540591,0.4354,26104.0,26103.0,1.35792503]
[1693536540791,0.4354,26104.0,26103.0,1.54808574]
[1693536541391,0.4374,26104.0,26103.0,1.56208574]
[1693536541593,0.36454454,26104.0,26103.0,1.56208574]
[1693536541794,0.36954454,26104.0,26103.0,1.55608574]
[1693536542188,0.36954454,26104.0,26103.0,1.36592503]
[1693536542384,0.36954454,26104.0,26103.0,1.55608574]
[1693536543088,0.34954454,26104.0,26103.0,1.55608574]
[1693536543293,0.35454454,26104.0,26103.0,1.55008574]
[1693536547193,0.35454454,26104.0,26103.0,1.60477481]
[1693536547391,0.35454454,26104.0,26103.0,1.55008574]
[1693536549402,0.35454454,26104.0,26103.0,1.51218133]
[1693536550287,0.35454454,26104.0,26103.0,1.35992503]
[1693536550494,0.35454454,26104.0,26103.0,1.51218968]
[1693536550693,0.35454454,26104.0,26103.0,1.10628671]
[1693536551804,0.35454454,26104.0,26103.0,1.07628671]
[1693536552698,0.35454454,26104.0,26103.0,0.002]
[1693536554303,0.41186313,26104.0,26103.0,0.002]
[1693536555708,0.43186313,26104.0,26103.0,0.002]
[1693536556008,0.41186313,26104.0,26103.0,0.002]
[1693536556600,0.43186313,26104.0,26099.0,0.1556]
[1693536556805,0.4154,26100.0,26099.0,0.1556]
[1693536557110,0.4154,26100.0,26098.0,0.4154]
[1693536557308,0.1659,26099.0,26098.0,0.4154]
[1693536558611,0.1689,26099.0,26098.0,0.4524]
[1693536559516,0.1719,26099.0,26098.0,0.4894]
[1693536566619,0.26095683,26099.0,26098.0,0.4894]
[1693536567120,0.67635683,26099.0,26098.0,0.074]
[1693536571516,0.68018683,26099.0,26098.0,0.074]
[1693536583232,0.67635683,26099.0,26098.0,0.074]
[1693536583430,0.26095683,26099.0,26098.0,0.4894]
[1693536583830,0.26095683,26099.0,26098.0,0.60063745]
[1693536590337,0.26095683,26099.0,26098.0,0.54408907]
[1693536590632,0.26095683,26099.0,26098.0,0.60063745]
[1693536600543,0.26095683,26099.0,26098.0,0.7529021]
[1693536601335,0.26095683,26099.0,26098.0,0.60063745]
[1693536601742,0.41815683,26099.0,26098.0,0.60063745]
[1693536601938,0.41815683,26099.0,26098.0,0.54594838]
[1693536602236,0.41815683,26099.0,26098.0,0.60063745]
[1693536602437,0.41815683,26099.0,26098.0,0.7529021]
[1693536603646,0.41815683,26099.0,26098.0,0.64166465]
[1693536603846,0.41815683,26099.0,26098.0,0.54408907]
[1693536604640,0.41815683,26099.0,26098.0,0.4894]
[1693536605448,0.41815683,26099.0,26098.0,0.54408907]
[1693536605943,0.41815683,26099.0,26098.0,0.54594838]
[1693536606753,0.41815683,26099.0,26098.0,0.60063745]
[1693536610239,0.42198683,26099.0,26098.0,0.60063745]
[1693536610745,0.42198683,26099.0,26098.0,0.7529021]
[1693536611140,0.42198683,26099.0,26098.0,1.00654311]
[1693536614847,0.42198683,26099.0,26098.0,0.94999473]
[1693536615345,0.42198683,26099.0,26098.0,0.89530566]
[1693536615747,0.42198683,26099.0,26098.0,0.94999473]
[1693536616951,0.83355683,26099.0,26098.0,0.94999473]
[1693536618751,0.83355683,26099.0,26098.0,0.65832183]
[1693536625859,0.83355683,26099.0,26098.0,0.94999095]
[1693536626467,0.83355683,26099.0,26098.0,1.00653933]